bitfinex/quotes_BTCUSD_20241206
["timestamp","ask_amount","ask_price","bid_price","bid_amount"]
[1733444731887,0.023,96886.0,96870.0,0.001729]
[1733444732128,0.10503154,96885.0,96870.0,0.001729]
[1733444732344,0.023,96884.0,96870.0,0.001729]
[1733444732563,0.10503154,96883.0,96870.0,0.001729]
[1733444732770,0.13606299,96880.0,96870.0,0.001729]
[1733444732993,0.10503154,96879.0,96870.0,0.001729]
[1733444734466,0.0805,96882.0,96870.0,0.001729]
[1733444734876,0.01757402,96888.0,96870.0,0.001729]
[1733444734877,0.01757402,96888.0,96876.0,0.15]
[1733444735250,0.00315423,96888.0,96876.0,0.15]
[1733444735797,0.00315423,96888.0,96871.0,0.15]
[1733444736111,0.12803154,96887.0,96870.0,0.001729]
[1733444738683,0.00315423,96888.0,96877.0,0.15]
[1733444738899,0.00315423,96888.0,96878.0,0.11393701]
[1733444739126,0.0805,96922.0,96899.0,0.15]
[1733444739369,0.18553154,96922.0,96902.0,0.11393701]
[1733444740476,0.18553154,96922.0,96903.0,0.15]
[1733444740699,0.18553154,96922.0,96905.0,0.15]
[1733444741794,0.023,96921.0,96905.0,0.15]
[1733444742028,0.12803154,96921.0,96905.0,0.15]
[1733444742248,0.12803154,96921.0,96899.0,0.15]
[1733444742722,0.023,96914.0,96893.0,0.11393701]
[1733444742944,0.12803154,96914.0,96892.0,0.15]
[1733444743384,0.12803154,96914.0,96893.0,0.11393701]
[1733444744913,0.1805,96922.0,96909.0,0.11393701]
[1733444745126,0.1805,96922.0,96911.0,0.11393701]
[1733444745471,0.1805,96922.0,96905.0,0.15]
[1733444746094,0.023,96921.0,96905.0,0.15]
[1733444746507,0.1805,96922.0,96913.0,0.11393701]
[1733444746713,0.1805,96922.0,96906.0,0.15]
[1733444746714,0.2,96922.0,96921.0,0.26393701]
[1733444747529,0.2,96922.0,96921.0,0.36896855]
[1733444748210,0.2,96922.0,96921.0,0.44646855]
[1733444748430,0.2,96922.0,96921.0,1.46952014]
[1733444750402,0.223,96922.0,96921.0,1.39202014]
[1733444750857,0.223,96922.0,96921.0,1.2869886]
[1733444750858,0.123,96922.0,96921.0,1.2869886]
[1733444751484,0.123,96922.0,96921.0,0.26393701]
[1733444751650,0.123,96922.0,96921.0,0.36896855]
[1733444751851,0.1,96922.0,96921.0,1.39202014]
[1733444753123,0.123,96922.0,96921.0,1.39202014]
[1733444753550,0.11797711,96922.0,96921.0,1.39202014]
[1733444754432,0.11797711,96922.0,96921.0,0.15]
[1733444754813,0.023,96921.0,96920.0,0.15]
[1733444755303,0.023,96921.0,96909.0,0.15]
[1733444755692,0.023,96921.0,96902.0,0.11393701]
[1733444756286,0.023,96921.0,96905.0,0.15]
[1733444756492,0.023,96921.0,96904.0,0.15]
[1733444756693,0.023,96921.0,96905.0,0.15]
[1733444757513,0.023,96921.0,96873.0,0.25]
[1733444757514,0.25,96871.0,96863.0,0.09107333]
[1733444757753,0.2281,96879.0,96850.0,0.22905881]
[1733444757754,0.1018,96863.0,96850.0,0.0017282]
[1733444757900,0.1018,96863.0,96820.0,0.00172]
[1733444757901,0.2281,96851.0,96820.0,0.00172]
[1733444758118,0.2281,96841.0,96820.0,0.00172]
[1733444758495,0.2281,96831.0,96820.0,0.00172]
[1733444758908,0.56715476,96831.0,96820.0,0.00172]
[1733444759124,0.2281,96821.0,96820.0,0.00172]
[1733444759249,0.31983536,96821.0,96820.0,0.00172]
[1733444759453,0.36587372,96821.0,96820.0,0.00172]
[1733444759665,0.58975913,96821.0,96820.0,0.00172]
[1733444759875,0.66855191,96821.0,96820.0,0.00172]
[1733444760224,0.2281,96814.0,96790.0,0.00173]
[1733444760429,0.2281,96811.0,96790.0,0.00173]
[1733444760789,0.25,96819.0,96790.0,0.00173]
[1733444760790,0.08519138,96812.0,96795.0,0.0219]
[1733444761017,0.08519138,96812.0,96796.0,0.0219]
[1733444761407,0.08519138,96812.0,96804.0,0.0219]
[1733444761579,0.08519138,96812.0,96811.0,0.0219]
[1733444762937,0.10819138,96812.0,96811.0,0.0219]
[1733444763818,0.08519138,96812.0,96811.0,0.12693154]
[1733444764032,0.08519138,96812.0,96811.0,0.0219]
[1733444764725,0.023,96811.0,96800.0,0.001721]
[1733444764899,0.12803154,96811.0,96800.0,0.001721]
[1733444765706,0.023,96811.0,96800.0,0.001721]
[1733444768161,0.08519138,96812.0,96800.0,0.001721]
[1733444768361,0.08519138,96812.0,96801.0,0.12796451]
[1733444769330,0.08519138,96812.0,96803.0,0.0219]
[1733444769530,0.023,96811.0,96805.0,0.0219]
[1733444771173,0.023,96811.0,96800.0,0.001721]
[1733444771355,0.023,96811.0,96801.0,0.10503154]
[1733444771929,0.023,96811.0,96801.0,0.10606447]
[1733444772343,0.023,96811.0,96800.0,0.001721]
[1733444773335,0.023,96811.0,96800.0,0.001681]
[1733444774642,0.02276516,96811.0,96800.0,0.001681]
[1733444775657,0.02276516,96811.0,96801.0,0.10503154]
[1733444776202,0.02276516,96811.0,96800.0,0.001681]
[1733444779529,0.02276516,96811.0,96790.0,0.00173]
[1733444779733,0.1277967,96811.0,96790.0,0.00173]
[1733444781206,0.1277967,96811.0,96780.0,0.0017292]
[1733444781426,0.0751,96808.0,96780.0,0.0017292]
[1733444781605,0.10503154,96807.0,96780.0,0.0017292]
[1733444781925,0.023,96806.0,96780.0,0.0017292]
[1733444782140,0.12803154,96806.0,96780.0,0.0017292]
[1733444782358,0.023,96804.0,96780.0,0.0017292]
[1733444782573,0.023,96802.0,96780.0,0.0017292]
[1733444782768,0.10503154,96801.0,96780.0,0.0017292]
[1733444782980,0.023,96800.0,96780.0,0.0017292]
[1733444783189,0.10503154,96797.0,96776.0,0.004126]
[1733444783390,0.0478,96795.0,96776.0,0.004126]
[1733444783598,0.273,96787.0,96770.0,0.00173]
[1733444783842,0.023,96785.0,96770.0,0.00173]
[1733444784054,0.10503154,96784.0,96770.0,0.00173]
[1733444784272,0.023,96783.0,96770.0,0.00173]
[1733444784497,0.10503154,96782.0,96770.0,0.00173]
[1733444784915,0.023,96781.0,96770.0,0.00173]
[1733444785126,0.023,96779.0,96770.0,0.00173]
[1733444785332,0.023,96777.0,96770.0,0.00173]
[1733444785475,0.023,96777.0,96745.0,6e-05]
[1733444785476,0.023,96775.0,96745.0,6e-05]
[1733444785684,0.023,96773.0,96745.0,6e-05]
[1733444785931,0.023,96771.0,96758.0,0.11952944]
[1733444786137,0.023,96771.0,96759.0,0.10606493]
[1733444787429,0.01403682,96792.0,96759.0,0.10606493]
[1733444787661,0.10503154,96791.0,96759.0,0.10606493]
[1733444788180,0.10503154,96791.0,96758.0,0.0144979]
[1733444788181,0.10503154,96791.0,96760.0,0.10503154]
[1733444788399,0.10503154,96791.0,96752.0,0.0466]
[1733444788626,0.023,96790.0,96752.0,0.0466]
[1733444788837,0.023,96788.0,96752.0,0.0466]
[1733444789038,0.10503154,96787.0,96752.0,0.0466]
[1733444789274,0.10503154,96787.0,96750.0,0.0008652]
[1733444789275,0.023,96786.0,96750.0,0.0008652]
[1733444789477,0.08519138,96791.0,96750.0,0.0008652]
[1733444789478,0.1292,96783.0,96750.0,0.0008652]
[1733444789620,0.023,96776.0,96745.0,6e-05]
[1733444789824,0.023,96774.0,96751.0,0.004128]
[1733444790060,0.023,96774.0,96745.0,6e-05]
[1733444790061,0.023,96772.0,96745.0,6e-05]
[1733444790218,0.10503154,96771.0,96745.0,6e-05]
[1733444790411,0.023,96770.0,96745.0,6e-05]
[1733444790636,0.023,96768.0,96745.0,6e-05]
[1733444790963,0.023,96766.0,96745.0,6e-05]
[1733444791297,0.023,96763.0,96745.0,6e-05]
[1733444791502,0.10503154,96762.0,96745.0,6e-05]
[1733444791705,0.023,96761.0,96745.0,6e-05]
[1733444791835,0.023,96759.0,96745.0,6e-05]
[1733444792040,0.023,96757.0,96745.0,6e-05]
[1733444792242,0.023,96753.0,96745.0,6e-05]
[1733444792470,0.023,96751.0,96745.0,6e-05]
[1733444792679,0.023,96749.0,96745.0,6e-05]
[1733444792839,0.25,96741.0,96710.0,0.000866]
[1733444793029,0.023,96747.0,96723.0,0.004128]
[1733444793030,0.023,96736.0,96723.0,0.004128]
[1733444793463,0.023,96731.0,96710.0,0.000866]
[1733444793630,0.10503154,96730.0,96710.0,0.000866]
[1733444793812,0.023,96729.0,96700.0,0.00081075]
[1733444794027,0.023,96727.0,96702.0,0.004129]
[1733444794205,0.023,96725.0,96702.0,0.004129]
[1733444794410,0.023,96725.0,96703.0,0.10606563]
[1733444795445,0.023,96725.0,96702.0,0.004129]
[1733444795819,0.0832,96737.0,96702.0,0.004129]
[1733444795820,0.023,96723.0,96702.0,0.004129]
[1733444796045,0.023,96721.0,96700.0,0.00081075]
[1733444796221,0.10503154,96720.0,96700.0,0.00081075]
[1733444796421,0.023,96719.0,96700.0,0.00081075]
[1733444796640,0.08519138,96726.0,96700.0,0.00081075]
[1733444796641,0.023,96717.0,96700.0,0.00081075]
[1733444796845,0.023,96715.0,96700.0,0.00081075]
[1733444797097,0.10503154,96714.0,96700.0,0.00081075]
[1733444797296,0.023,96713.0,96700.0,0.00081075]
[1733444797514,0.10503154,96713.0,96700.0,0.00081075]
[1733444797730,0.023,96712.0,96700.0,0.00081075]
[1733444798547,0.08519138,96726.0,96701.0,0.10503154]
[1733444798768,0.08519138,96726.0,96702.0,0.00103399]
[1733444798973,0.08519138,96726.0,96702.0,0.10606553]
[1733444799565,0.08519138,96726.0,96700.0,0.00081075]
[1733444799566,0.10503154,96725.0,96700.0,0.00184474]
[1733444799779,0.023,96724.0,96700.0,0.00081075]
[1733444799983,0.10503154,96723.0,96700.0,0.00081075]
[1733444800396,0.023,96722.0,96700.0,0.00081075]
[1733444800598,0.10503154,96721.0,96700.0,0.00081075]
[1733444800984,0.023,96720.0,96700.0,0.00081075]
[1733444801181,0.10503154,96720.0,96700.0,0.00081075]
[1733444801396,0.023,96719.0,96700.0,0.00081075]
[1733444801803,0.023,96717.0,96700.0,0.00081075]
[1733444801946,0.10503154,96716.0,96700.0,0.00081075]
[1733444802363,0.023,96715.0,96700.0,0.00081075]
[1733444802705,0.10503154,96714.0,96700.0,0.00081075]
[1733444802857,0.023,96713.0,96700.0,0.00081075]
[1733444803057,0.12803154,96713.0,96700.0,0.00081075]
[1733444803565,0.023,96711.0,96673.0,0.048]
[1733444803768,1.86349138,96716.0,96673.0,0.048]
[1733444803769,0.023,96709.0,96687.0,0.00413]
[1733444804111,0.023,96709.0,96673.0,0.048]
[1733444804112,0.0832,96706.0,96673.0,0.048]
[1733444804267,0.12803154,96705.0,96673.0,0.048]
[1733444804835,0.12803154,96705.0,96660.0,0.0008646]
[1733444805040,0.12803154,96705.0,96662.0,0.00103438]
[1733444805248,0.12803154,96705.0,96660.0,0.0008646]
[1733444805455,0.023,96703.0,96660.0,0.0008646]
[1733444805660,0.023,96698.0,96660.0,0.0008646]
[1733444805938,0.023,96696.0,96660.0,0.0008646]
[1733444806156,0.023,96693.0,96660.0,0.0008646]
[1733444806288,0.023,96691.0,96660.0,0.0008646]
[1733444806526,0.023,96691.0,96636.0,0.25]
[1733444806527,0.1082,96680.0,96597.0,0.0802]
[1733444806701,0.10503154,96654.0,96597.0,0.0802]
[1733444806962,0.0791,96658.0,96597.0,0.0802]
[1733444806963,0.10503154,96650.0,96615.0,0.014498]
[1733444807188,0.10503154,96650.0,96606.0,0.048]
[1733444807189,0.02403544,96649.0,96606.0,0.048]
[1733444807392,0.023,96647.0,96607.0,0.00103501]
[1733444807605,0.25,96654.0,96606.0,0.048]
[1733444807606,0.023,96645.0,96606.0,0.048]
[1733444807816,0.023,96643.0,96606.0,0.048]
[1733444808005,0.023,96641.0,96606.0,0.048]
[1733444808224,0.023,96639.0,96606.0,0.048]
[1733444808432,0.023,96637.0,96610.0,0.007681]
[1733444808648,0.023,96635.0,96588.0,0.0093215]
[1733444808795,0.023,96633.0,96589.0,0.00103513]
[1733444809011,0.25,96646.0,96589.0,0.00103513]
[1733444809012,0.023,96631.0,96589.0,0.00103513]
[1733444809204,0.10606698,96630.0,96601.0,0.007681]
[1733444809437,0.023,96629.0,96601.0,0.007681]
[1733444809609,0.10606698,96628.0,96601.0,0.007681]
[1733444809820,0.023,96627.0,96604.0,0.01410841]
[1733444810028,0.10606698,96626.0,96604.0,0.01410841]
[1733444810591,0.023,96625.0,96604.0,0.01410841]
[1733444810709,0.10606698,96624.0,96604.0,0.01410841]
[1733444810907,0.02403544,96624.0,96604.0,0.01410841]
[1733444811115,0.00103544,96628.0,96605.0,0.00103511]
[1733444811321,0.08519138,96629.0,96605.0,0.00103511]
[1733444811579,0.00103544,96628.0,96605.0,0.00103511]
[1733444813290,0.02403544,96628.0,96618.0,0.01406129]
[1733444813490,0.00103544,96628.0,96618.0,0.01406129]
[1733444813692,0.00103544,96628.0,96605.0,0.00103511]
[1733444814351,0.08519138,96629.0,96605.0,0.00103511]
[1733444814570,0.08519138,96629.0,96621.0,0.0497]
[1733444814807,0.08519138,96629.0,96624.0,0.1060664]
[1733444815007,0.08519138,96629.0,96624.0,1.12911799]
[1733444815647,0.08519138,96629.0,96628.0,0.10503154]
[1733444815777,0.01371881,96629.0,96628.0,0.10503154]
[1733444815979,1.17263717,96630.0,96629.0,0.2596]
[1733444816205,1.08750217,96630.0,96629.0,0.36463154]
[1733444816419,0.67452585,96630.0,96629.0,0.36463154]
[1733444816604,1.32872585,96631.0,96630.0,0.25]
[1733444816801,1.32872585,96631.0,96630.0,0.35503154]
[1733444817387,1.32872585,96631.0,96630.0,0.37506715]
[1733444817930,1.32179468,96631.0,96630.0,0.37506715]
[1733444818132,1.31664334,96631.0,96630.0,0.37506715]
[1733444818739,1.30564334,96631.0,96630.0,0.37506715]
[1733444819122,1.30264334,96631.0,96630.0,0.35503154]
[1733444819864,1.30264334,96631.0,96630.0,0.11869873]
[1733444820064,1.30264334,96631.0,96630.0,0.36869873]
[1733444820465,1.30264334,96631.0,96630.0,0.11869873]
[1733444824092,1.30264334,96631.0,96630.0,0.11956543]
[1733444825324,1.30264334,96631.0,96630.0,0.01453389]
[1733444826499,1.30264334,96631.0,96630.0,0.11956543]
[1733444829543,1.30264334,96631.0,96630.0,0.01453389]
[1733444832317,1.30264334,96631.0,96630.0,0.11956543]
[1733444835358,1.40534334,96631.0,96630.0,0.01453389]
[1733444835560,1.40534334,96631.0,96630.0,0.0008667]
[1733444837512,1.38234334,96631.0,96630.0,0.0008667]
[1733444837709,1.30264334,96631.0,96630.0,0.10589824]
[1733444840445,1.30264334,96631.0,96626.0,1.02305159]
[1733444841027,0.00103544,96630.0,96626.0,1.02305159]
[1733444841234,0.02403544,96630.0,96623.0,0.0076807]
[1733444841433,0.023,96628.0,96623.0,0.0076807]
[1733444841635,0.023,96626.0,96623.0,0.0076807]
[1733444841839,0.023,96624.0,96623.0,0.0076807]
[1733444842042,0.02403544,96624.0,96623.0,0.0076807]
[1733444845069,1.30264334,96625.0,96623.0,0.0076807]
[1733444845941,1.28054805,96625.0,96623.0,0.0076807]
[1733444847075,1.28054805,96625.0,96623.0,0.02053829]
[1733444847517,1.28054805,96625.0,96623.0,0.0076807]
[1733444847518,0.02403544,96624.0,96623.0,0.0076807]
[1733444848247,0.10153544,96624.0,96623.0,0.0076807]
[1733444849143,0.20656698,96624.0,96623.0,0.0076807]
[1733444849351,0.20553154,96624.0,96623.0,0.0076807]
[1733444849746,0.25533154,96624.0,96614.0,6e-05]
[1733444849898,0.023,96622.0,96614.0,6e-05]
[1733444850153,0.00103544,96621.0,96614.0,6e-05]
[1733444851163,0.023,96619.0,96614.0,6e-05]
[1733444851366,0.023,96617.0,96614.0,6e-05]
[1733444851591,0.00103544,96616.0,96614.0,6e-05]
[1733444854155,0.12803154,96615.0,96614.0,6e-05]
[1733444854321,0.12906698,96615.0,96614.0,6e-05]
[1733444856228,0.25646698,96615.0,96589.0,0.0130564]
[1733444856408,0.02403544,96614.0,96588.0,0.0093215]
[1733444856653,0.0814,96611.0,96588.0,0.0093215]
[1733444856849,0.12906698,96610.0,96588.0,0.0093215]
[1733444857405,0.046,96609.0,96588.0,0.0093215]
[1733444857786,0.12906698,96608.0,96588.0,0.0093215]
[1733444858843,0.046,96605.0,96561.0,0.04136821]
[1733444859042,0.046,96605.0,96562.0,0.10503154]
[1733444859043,0.12932582,96604.0,96562.0,0.10503154]
[1733444859209,0.12932582,96604.0,96600.0,0.0008668]
[1733444860287,0.12803154,96604.0,96600.0,0.0008668]
[1733444860670,0.00107085,96603.0,96600.0,0.0008668]
[1733444860879,0.023,96601.0,96600.0,0.0008668]
[1733444861076,0.12910239,96601.0,96600.0,0.0008668]
[1733444861682,0.70218233,96718.0,96600.0,0.0008668]
[1733444861683,1.28054805,96609.0,96600.0,0.0008668]
[1733444861884,1.28054805,96609.0,96589.0,0.25]
[1733444862039,1.28054805,96609.0,96592.0,0.13801726]
[1733444862250,1.28054805,96609.0,96594.0,0.13801726]
[1733444862443,1.28054805,96609.0,96589.0,1.27305159]
[1733444862444,1.28054805,96609.0,96596.0,0.13801726]
[1733444862676,1.28054805,96609.0,96597.0,0.10606662]
[1733444863242,1.28054805,96609.0,96597.0,0.24408388]
[1733444864086,1.28054805,96609.0,96597.0,0.13801726]
[1733444864087,0.00107085,96608.0,96597.0,0.13801726]
[1733444864292,1.28054805,96609.0,96598.0,0.03801726]
[1733444864507,1.28054805,96609.0,96593.0,0.18402302]
[1733444864721,1.28054805,96609.0,96594.0,0.10606666]
[1733444865872,1.28054805,96609.0,96595.0,0.1836854]
[1733444866139,1.28054805,96609.0,96594.0,0.35606666]
[1733444866140,1.28054805,96609.0,96596.0,0.189752]
[1733444866343,1.28054805,96609.0,96599.0,0.18363119]
[1733444866546,1.28054805,96609.0,96599.0,1.02305159]
[1733444867051,0.00129387,96608.0,96599.0,1.02305159]
[1733444867661,1.28054805,96609.0,96599.0,1.02305159]
[1733444867872,1.28054805,96609.0,96592.0,0.18363119]
[1733444868075,1.28054805,96609.0,96592.0,1.12808313]
[1733444868651,1.28054805,96609.0,96593.0,0.10503154]
[1733444868856,1.28054805,96609.0,96594.0,0.25]
[1733444869162,1.28054805,96609.0,96595.0,0.10503154]
[1733444869340,1.28054805,96609.0,96593.0,0.25]
[1733444869565,1.28054805,96609.0,96604.0,0.09176483]
[1733444869697,1.28054805,96609.0,96605.0,0.09176483]
[1733444870104,1.28054805,96609.0,96605.0,0.10503154]
[1733444870312,1.28054805,96609.0,96608.0,0.25]
[1733444870516,0.47800871,96612.0,96609.0,0.023]
[1733444870718,0.47800871,96612.0,96611.0,0.10503154]
[1733444870719,0.27353187,96612.0,96611.0,0.10503154]
[1733444871040,0.21778151,96612.0,96611.0,0.73388286]
[1733444871244,0.21126694,96612.0,96611.0,1.25774986]
[1733444871421,0.14846588,96612.0,96611.0,1.25774986]
[1733444871622,0.0622559,96612.0,96611.0,2.75774986]
[1733444871823,0.03010039,96612.0,96611.0,2.72532648]
[1733444872145,0.03010039,96612.0,96611.0,2.3598126]
[1733444872910,0.03010039,96612.0,96611.0,2.2425816]
[1733444873588,0.03010039,96612.0,96611.0,1.53064901]
[1733444873838,0.03010039,96612.0,96611.0,1.50503154]
[1733444874020,0.03010039,96612.0,96611.0,1.91087218]
[1733444874225,0.03010039,96612.0,96611.0,1.50503154]
[1733444875696,0.03010039,96612.0,96611.0,0.00503154]
[1733444876257,0.03010039,96612.0,96606.0,1.77478504]
[1733444876420,0.03010039,96612.0,96609.0,0.1832669]
[1733444876696,0.05310039,96612.0,96608.0,0.1374513]
[1733444876823,0.05310039,96612.0,96600.0,0.2290464]
[1733444876824,0.023,96611.0,96607.0,0.1374513]
[1733444877023,0.023,96611.0,96608.0,0.1374513]
[1733444877405,0.023,96611.0,96592.0,0.04007341]
[1733444877406,0.023,96611.0,96607.0,0.1374513]
[1733444877532,0.023,96611.0,96608.0,0.1374513]
[1733444877741,0.023,96611.0,96592.0,0.04007341]
[1733444877742,0.023,96611.0,96609.0,0.1374513]
[1733444878218,0.03010039,96612.0,96609.0,0.1832669]
[1733444878421,0.03010039,96612.0,96609.0,0.2290464]
[1733444878623,0.03010039,96612.0,96610.0,0.2291377]
[1733444878825,0.03010039,96612.0,96609.0,0.2291377]
[1733444878954,0.1,96611.0,96609.0,0.2291377]
[1733444879359,0.1,96611.0,96607.0,0.2291377]
[1733444879586,0.1,96611.0,96610.0,0.2291377]
[1733444879789,0.1,96611.0,96609.0,0.22919651]
[1733444880187,0.023,96610.0,96608.0,0.22919651]
[1733444880433,0.023,96610.0,96601.0,1.02305159]
[1733444881182,0.023,96610.0,96602.0,0.10503154]
[1733444881753,0.023,96610.0,96603.0,0.27522983]
[1733444881889,0.023,96610.0,96604.0,0.38026137]
[1733444882093,0.0247342,96610.0,96604.0,0.10503154]
[1733444882719,0.0247342,96610.0,96601.0,1.42944564]
[1733444882945,0.0247342,96610.0,96608.0,0.27509619]
[1733444883297,0.0247342,96610.0,96607.0,0.27509619]
[1733444883505,0.0247342,96610.0,96608.0,0.27509619]
[1733444883962,0.0017342,96610.0,96609.0,0.10503154]
[1733444884944,0.0017342,96610.0,96609.0,0.41402367]
[1733444885399,0.0017342,96610.0,96609.0,0.10503154]
[1733444885728,0.0017342,96610.0,96609.0,1.60503154]
[1733444885942,0.0017342,96610.0,96609.0,1.9141023]
[1733444886134,0.07894501,96611.0,96609.0,1.60503154]
[1733444886441,0.07894501,96611.0,96610.0,0.64813154]
[1733444887684,0.07894501,96611.0,96610.0,2.14813154]
[1733444888200,0.07894501,96611.0,96610.0,2.25953154]
[1733444888373,0.07356707,96611.0,96610.0,2.25953154]
[1733444888581,0.07356707,96611.0,96610.0,2.28632446]
[1733444890778,0.07356707,96611.0,96610.0,2.59425606]
[1733444890960,0.07356707,96611.0,96610.0,2.28632446]
[1733444891167,0.07356707,96611.0,96610.0,2.30650178]
[1733444891554,0.07356707,96611.0,96610.0,2.32827946]
[1733444891786,0.04473397,96611.0,96610.0,2.32827946]
[1733444891932,0.04473397,96611.0,96610.0,2.30650178]
[1733444892156,1.8406,96613.0,96610.0,2.30650178]
[1733444892157,0.17917107,96613.0,96611.0,0.023]
[1733444892309,0.01633669,96721.0,96611.0,0.023]
[1733444892310,2.857067,96612.0,96611.0,3.12925891]
[1733444892509,2.84067646,96612.0,96611.0,3.0267833]
[1733444892709,2.84067646,96612.0,96611.0,3.04856098]
[1733444892965,0.94177714,96612.0,96611.0,3.04856098]
[1733444893293,0.94177714,96612.0,96611.0,3.0267833]
[1733444893444,0.0817,96678.0,96611.0,3.07853978]
[1733444893706,0.023,96677.0,96652.0,0.09105319]
[1733444893838,0.023,96677.0,96653.0,0.10503154]
[1733444894039,0.023,96677.0,96653.0,0.19608473]
[1733444894259,0.023,96677.0,96653.0,0.10503154]
[1733444895127,0.1299,96678.0,96657.0,0.10503154]
[1733444896326,0.023,96677.0,96657.0,0.10503154]
[1733444898756,0.1299,96678.0,96657.0,0.10503154]
[1733444899471,0.0758,96691.0,96662.0,0.10503154]
[1733444899678,0.0758,96691.0,96665.0,0.10503154]
[1733444900210,0.1,96677.0,96665.0,0.10503154]
[1733444900663,0.1,96677.0,96671.0,1.5]
[1733444900862,0.1,96677.0,96672.0,0.10503154]
[1733444901041,0.1,96677.0,96672.0,1.12808313]
[1733444904800,0.09586846,96677.0,96672.0,1.12808313]
[1733444906509,0.09586846,96677.0,96672.0,1.02305159]
[1733444906704,0.09007614,96677.0,96672.0,1.02305159]
[1733444909583,0.09007614,96677.0,96673.0,0.10503154]
[1733444911216,0.19007614,96677.0,96673.0,0.10503154]
[1733444912522,0.19007614,96677.0,96673.0,0.19622879]
[1733444913287,0.19007614,96677.0,96676.0,0.28742605]
[1733444913492,0.19007614,96677.0,96676.0,0.10503154]
[1733444913773,0.19007614,96677.0,96676.0,1.60503154]
[1733444913981,0.0785,96704.0,96676.0,1.83303756]
[1733444914210,0.0785,96704.0,96691.0,0.0912028]
[1733444914459,0.0785,96704.0,96692.0,0.10503154]
[1733444915856,0.0785,96704.0,96694.0,1.5]
[1733444916044,0.0785,96704.0,96695.0,0.10503154]
[1733444916951,0.023,96703.0,96691.0,1.02305159]
[1733444917276,0.0496,96702.0,96691.0,1.02305159]
[1733444917487,0.023,96701.0,96691.0,1.02305159]
[1733444919520,0.25,96687.0,96664.0,1.5912028]
[1733444919764,0.023,96680.0,96648.0,0.0912028]
[1733444919969,0.023,96680.0,96643.0,1.02305159]
[1733444919970,0.0785,96677.0,96643.0,1.02305159]
[1733444920182,0.12932458,96676.0,96644.0,0.10503154]
[1733444922600,0.22932458,96676.0,96644.0,0.10503154]
[1733444924206,0.22932458,96676.0,96644.0,0.19623434]
[1733444924445,0.22932458,96676.0,96647.0,0.0912028]
[1733444924655,0.22932458,96676.0,96648.0,0.0912028]
[1733444924867,0.22932458,96676.0,96647.0,0.0912028]
[1733444925066,0.22932458,96676.0,96646.0,0.0912028]
[1733444925285,0.0785,96672.0,96646.0,0.0912028]
[1733444925474,0.0785,96672.0,96643.0,1.02305159]
[1733444925475,0.12932466,96671.0,96648.0,0.0912028]
[1733444925601,0.023,96666.0,96647.0,0.0912028]
[1733444925816,0.00129316,96665.0,96644.0,0.0912028]
[1733444926031,0.00129316,96665.0,96643.0,1.11441207]
[1733444926032,0.273,96663.0,96643.0,1.11441207]
[1733444926240,0.023,96661.0,96644.0,0.09134473]
[1733444926431,0.00129324,96660.0,96644.0,0.09134473]
[1733444926636,0.00129324,96660.0,96643.0,1.02305159]
[1733444927239,0.023,96656.0,96643.0,1.02305159]
[1733444927488,0.0793,96654.0,96643.0,1.02305159]
[1733444927733,0.25,96650.0,96643.0,1.02305159]
[1733444927944,0.25,96646.0,96631.0,1.02305159]
[1733444928185,0.023,96639.0,96629.0,1.02305159]
[1733444928393,0.00129352,96638.0,96629.0,1.02305159]
[1733444928805,0.023,96639.0,96629.0,1.02305159]
[1733444929207,0.02429352,96639.0,96629.0,1.02305159]
[1733444929718,0.00129352,96638.0,96629.0,1.02305159]
[1733444929936,0.02429352,96639.0,96629.0,1.02305159]
[1733444930124,0.023,96636.0,96629.0,1.02305159]
[1733444930458,0.25,96625.0,96621.0,0.09134473]
[1733444930696,0.5,96614.0,96611.0,0.09134473]
[1733444930895,0.5,96614.0,96610.0,0.01207932]
[1733444930896,0.273,96611.0,96610.0,0.01207932]
[1733444931116,0.023,96602.0,96587.0,0.09134473]
[1733444931336,0.023,96602.0,96578.0,1.20574106]
[1733444931337,0.37932558,96601.0,96578.0,1.02305159]
[1733444931540,0.37803154,96601.0,96578.0,1.02305159]
[1733444931746,0.37803154,96601.0,96575.0,0.09134473]
[1733444931955,0.37803154,96601.0,96574.0,0.09134473]
[1733444932383,0.37803154,96601.0,96568.0,1.11439632]
[1733444932583,0.37803154,96601.0,96570.0,0.09134473]
[1733444932711,0.37803154,96601.0,96569.0,0.09134473]
[1733444933098,0.37803154,96601.0,96568.0,1.11439632]
[1733444933300,0.37803154,96601.0,96568.0,1.02305159]
[1733444935610,0.37803154,96601.0,96586.0,1.02314459]
[1733444936735,0.62803154,96601.0,96586.0,1.02314459]
[1733444936947,0.023,96600.0,96552.0,0.09134473]
[1733444937171,0.60503154,96601.0,96553.0,0.10503154]
[1733444937172,0.023,96598.0,96553.0,0.10503154]
[1733444937372,0.12803154,96598.0,96553.0,0.10503154]
[1733444937769,0.12803154,96598.0,96560.0,1.5]
[1733444937972,0.12803154,96598.0,96561.0,0.10503154]
[1733444938518,0.023,96596.0,96561.0,0.00503154]
[1733444938810,0.023,96594.0,96561.0,0.00503154]
[1733444939065,0.0793,96591.0,96561.0,0.00503154]
[1733444939270,0.023,96590.0,96561.0,0.00503154]
[1733444939614,0.023,96590.0,96562.0,0.10503154]
[1733444939815,0.023,96590.0,96562.0,1.12808313]
[1733444942570,0.0793,96591.0,96562.0,1.12808313]
[1733444942787,0.0793,96610.0,96570.0,0.10503154]
[1733444943009,0.0793,96610.0,96574.0,0.10503154]
[1733444943216,0.0793,96610.0,96574.0,1.12808313]
[1733444943423,0.0793,96610.0,96574.0,1.17975102]
[1733444943555,0.0793,96610.0,96574.0,1.12808313]
[1733444943766,0.0793,96610.0,96584.0,1.5]
[1733444943971,0.0793,96610.0,96585.0,0.10503154]
[1733444944808,0.023,96609.0,96585.0,0.10503154]
[1733444945699,0.00129377,96631.0,96585.0,0.10503154]
[1733444945700,0.047,96625.0,96585.0,0.10503154]
[1733444945923,0.25,96673.0,96584.0,2.57417237]
[1733444945924,0.25,96657.0,96593.0,0.10503154]
[1733444946104,0.25,96657.0,96584.0,2.57417237]
[1733444946105,0.25,96655.0,96599.0,0.15678297]